[Event "11th LCC Super Blitz 2019"]
[Site "London"]
[Date "2019.12.08"]
[Round "4.10"]
[White "Phillips, David"]
[Black "Sheikh, Anum"]
[Result "0-1"]
[ECO "B23"]
[WhiteElo "1810"]
[BlackElo "1560"]
[Annotator "NA"]
[PlyCount "98"]
[EventDate "2019.12.08"]
[EventType "swiss"]
[EventCountry "ENG"]
[SourceTitle "playchess.com"]
[Source "ChessBase"]
[SourceQuality "1"]
[TimeControl "180+2"]

1. e4 {[%emt 0:00:01]} c5 {[%emt 0:00:00]} 2. Nc3 {[%emt 0:00:03]} e6 {[%emt 0:00:00]} 3. g3 {[%emt 0:00:04]} d5 {[%emt 0:00:03]} 4. Bg2 {[%emt 0:00:06]} d4 {[%emt 0:00:02]} 5. Nb1 {[%emt 0:00:06]} Nc6 {[%emt 0:00:03]} 6. Ne2 {[%emt 0:00:05]} Nf6 {[%emt 0:00:03]} 7. d3 {[%emt 0:00:05]} Be7 {[%emt 0:00:10]} 8. O-O {[%emt 0:00:04]} O-O {[%emt 0:00:02]} 9. Na3 {[%emt 0:00:07]} a6 {[%emt 0:00:03]} 10. c3 {[%emt 0:00:24]} e5 {[%emt 0:00:08]} 11. cxd4 {[%emt 0:00:05]} cxd4 {[%emt 0:00:01]} 12. Nc4 {[%emt 0:00:18]} b5 {[%emt 0:00:04]} 13. Nd2 {[%emt 0:00:05]} Rb8 {[%emt 0:00:17]} 14. h3 {[%emt 0:00:18]} Nb4 {[%emt 0:00:15]} 15. Nb3 {[%emt 0:00:04]} Qc7 {[%emt 0:00:09]} 16. f4 {[%emt 0:00:41]} Nc2 {[%emt 0:00:36]} 17. Rb1 {[%emt 0:00:01]} Ne3 {[%emt 0:00:11]} 18. Bxe3 {[%emt 0:00:02]} dxe3 {[%emt 0:00:01]} 19. Rc1 {[%emt 0:00:08]} Qd6 {[%emt 0:00:12]} 20. fxe5 {[%emt 0:00:16]} Qxe5 {[%emt 0:00:02]} 21. d4 {[%emt 0:00:01]} Qh5 {[%emt 0:00:08]} 22. e5 {[%emt 0:00:06]} Ne8 {[%emt 0:00:09]} 23. Nf4 {[%emt 0:00:12]} Qh6 {[%emt 0:00:09]} 24. Qf3 {[%emt 0:00:13]} Bb7 {[%emt 0:00:02]} 25. Qxe3 {[%emt 0:00:05]} Bxg2 {[%emt 0:00:03]} 26. Kxg2 {[%emt 0:00:02]} Rd8 {[%emt 0:00:24]} 27. Qd2 {[%emt 0:00:08]} Bg5 {[%emt 0:00:04]} 28. Qf2 {[%emt 0:00:03]} b4 {[%emt 0:00:10]} 29. Qf3 {[%emt 0:00:01]} Bxf4 {[%emt 0:00:07]} 30. Qxf4 {[%emt 0:00:02]} Qb6 {[%emt 0:00:05]} 31. Rc6 {[%emt 0:00:01]} Qxc6+ {[%emt 0:00:02]} 32. Qf3 {[%emt 0:00:02]} Qxf3+ {[%emt 0:00:05]} 33. Kxf3 {[%emt 0:00:01]} Nc7 {[%emt 0:00:01]} 34. Ke4 {[%emt 0:00:02]} Ne6 {[%emt 0:00:07]} 35. d5 {[%emt 0:00:02]} Ng5+ {[%emt 0:00:01]} 36. Kf5 {[%emt 0:00:01]} Nxh3 {[%emt 0:00:02]} 37. Rh1 {[%emt 0:00:03]} Nf2 {[%emt 0:00:02]} 38. Rh2 {[%emt 0:00:01]} Nd3 {[%emt 0:00:03]} 39. Rd2 {[%emt 0:00:01]} Rxd5 {[%emt 0:00:08]} 40. Ke4 {[%emt 0:00:02]} Rfd8 {[%emt 0:00:02]} 41. Rc2 {[%emt 0:00:05]} Rxe5+ {[%emt 0:00:02]} 42. Kf3 {[%emt 0:00:02]} Ne1+ {[%emt 0:00:01]} 43. Kf4 {[%emt 0:00:01]} Nxc2 {[%emt 0:00:03]} 44. Kxe5 {[%emt 0:00:01]} Rd3 {[%emt 0:00:02]} 45. Nc5 {[%emt 0:00:02]} Rxg3 {[%emt 0:00:02]} 46. Nxa6 {[%emt 0:00:01]} h5 {[%emt 0:00:01]} 47. Kf4 {[%emt 0:00:03]} h4 {[%emt 0:00:01]} 48. Nc5 {[%emt 0:00:02]} g5+ {[%emt 0:00:01]} 49. Kf5 {[%emt 0:00:01]} h3 {[%emt 0:00:02]} 0-1

[Event "11th LCC Super Blitz 2019"]
[Site "London"]
[Date "2019.12.08"]
[Round "4.10"]
[White "Jackson, Julius"]
[Black "Lovell, William Pm"]
[Result "1-0"]
[ECO "B22"]
[WhiteElo "1584"]
[BlackElo "1831"]
[Annotator "NA"]
[PlyCount "57"]
[EventDate "2019.12.08"]
[EventType "swiss"]
[EventCountry "ENG"]
[SourceTitle "playchess.com"]
[Source "ChessBase"]
[SourceQuality "1"]
[TimeControl "180+2"]

1. e4 {[%emt 0:00:00]} c5 {[%emt 0:00:00]} 2. Nf3 {[%emt 0:00:01]} Nc6 {[%emt 0:00:00]} 3. c3 {[%emt 0:00:01]} g6 {[%emt 0:00:01]} 4. d4 {[%emt 0:00:03]} cxd4 {[%emt 0:00:01]} 5. cxd4 {[%emt 0:00:01]} Bg7 {[%emt 0:00:01]} 6. Nc3 {[%emt 0:00:02]} e6 {[%emt 0:00:02]} 7. Bf4 {[%emt 0:00:08]} a6 {[%emt 0:00:08]} 8. Be2 {[%emt 0:00:11]} Nge7 {[%emt 0:00:02]} 9. O-O {[%emt 0:00:04]} O-O {[%emt 0:00:01]} 10. Qd2 {[%emt 0:00:06]} d5 {[%emt 0:00:02]} 11. e5 {[%emt 0:00:08]} Nf5 {[%emt 0:00:03]} 12. g4 {[%emt 0:00:13]} Nfe7 {[%emt 0:00:05]} 13. Bh6 {[%emt 0:00:15]} f5 {[%emt 0:00:16]} 14. h3 {[%emt 0:00:16]} fxg4 {[%emt 0:00:05]} 15. hxg4 {[%emt 0:00:01]} Qe8 {[%emt 0:00:09]} 16. Kg2 {[%emt 0:00:11]} Qf7 {[%emt 0:00:13]} 17. Rh1 {[%emt 0:00:01]} Bxh6 {[%emt 0:00:07]} 18. Rxh6 {[%emt 0:00:06]} Qf4 {[%emt 0:00:50]} 19. Qxf4 {[%emt 0:00:26]} Rxf4 {[%emt 0:00:01]} 20. Ng5 {[%emt 0:00:01]} Nxd4 {[%emt 0:00:04]} 21. Kg3 {[%emt 0:00:21]} Nxe2+ {[%emt 0:00:04]} 22. Nxe2 {[%emt 0:00:01]} Rb4 {[%emt 0:00:21]} 23. b3 {[%emt 0:00:08]} Nc6 {[%emt 0:00:05]} 24. f4 {[%emt 0:00:11]} b5 {[%emt 0:00:19]} 25. Nxh7 {[%emt 0:00:02]} Kg7 {[%emt 0:00:05]} 26. Rah1 {[%emt 0:00:05]} Bb7 {[%emt 0:00:02]} 27. Nf6 {[%emt 0:00:03]} Na5 {[%emt 0:00:16]} 28. Rh7+ {[%emt 0:00:02]} Kf8 {[%emt 0:00:02]} 29. Rh8+ {[%emt 0:00:08]} 1-0

[Event "11th LCC Super Blitz 2019"]
[Site "London"]
[Date "2019.12.08"]
[Round "4.11"]
[White "Eames, Robert S"]
[Black "Tombolis, Christopher"]
[Result "1-0"]
[ECO "B38"]
[WhiteElo "2166"]
[BlackElo "1655"]
[Annotator "NA"]
[PlyCount "95"]
[EventDate "2019.12.08"]
[EventType "swiss"]
[EventCountry "ENG"]
[SourceTitle "playchess.com"]
[Source "ChessBase"]
[SourceQuality "1"]
[TimeControl "180+2"]

1. e4 {[%emt 0:00:01]} c5 {[%emt 0:00:00]} 2. Nf3 {[%emt 0:00:02]} Nc6 {[%emt 0:00:00]} 3. d4 cxd4 {[%emt 0:00:00]} 4. Nxd4 {[%emt 0:00:02]} g6 {[%emt 0:00:07]} 5. c4 {[%emt 0:00:01]} Bg7 {[%emt 0:00:00]} 6. Be3 {[%emt 0:00:02]} d6 {[%emt 0:00:04]} 7. Nc3 {[%emt 0:00:06]} Nf6 {[%emt 0:00:01]} 8. Be2 {[%emt 0:00:09]} O-O {[%emt 0:00:02]} 9. O-O {[%emt 0:00:02]} a5 {[%emt 0:00:01]} 10. Qd2 {[%emt 0:00:10]} a4 {[%emt 0:00:01]} 11. Rac1 {[%emt 0:00:14]} a3 {[%emt 0:00:03]} 12. b3 {[%emt 0:00:02]} Qa5 {[%emt 0:00:02]} 13. f3 {[%emt 0:00:11]} Nd7 {[%emt 0:00:19]} 14. Ndb5 {[%emt 0:00:15]} Nde5 {[%emt 0:00:37]} 15. Rfd1 {[%emt 0:00:18]} Bd7 {[%emt 0:00:09]} 16. Bh6 {[%emt 0:00:26]} Nb4 {[%emt 0:00:10]} 17. Bxg7 {[%emt 0:00:10]} Kxg7 {[%emt 0:00:01]} 18. f4 {[%emt 0:00:54]} Qb6+ {[%emt 0:00:20]} 19. Qd4 {[%emt 0:00:16]} Qxd4+ {[%emt 0:00:06]} 20. Nxd4 {[%emt 0:00:04]} Ng4 {[%emt 0:00:14]} 21. Bxg4 {[%emt 0:00:01]} Bxg4 {[%emt 0:00:02]} 22. Rd2 {[%emt 0:00:01]} Bd7 {[%emt 0:00:14]} 23. Re1 {[%emt 0:00:01]} e5 {[%emt 0:00:06]} 24. Ndb5 {[%emt 0:00:07]} Bxb5 {[%emt 0:00:06]} 25. Nxb5 {[%emt 0:00:01]} exf4 {[%emt 0:00:06]} 26. Nxd6 {[%emt 0:00:03]} Rad8 {[%emt 0:00:22]} 27. Red1 {[%emt 0:00:01]} b6 {[%emt 0:00:17]} 28. Kf2 {[%emt 0:00:09]} f6 {[%emt 0:00:06]} 29. Kf3 {[%emt 0:00:03]} Nc6 {[%emt 0:00:10]} 30. Kxf4 {[%emt 0:00:03]} Ne5 {[%emt 0:00:02]} 31. Nf5+ {[%emt 0:00:03]} gxf5 {[%emt 0:00:04]} 32. Rxd8 {[%emt 0:00:01]} Rf7 {[%emt 0:00:08]} 33. R8d6 {[%emt 0:00:02]} fxe4 {[%emt 0:00:02]} 34. Kxe4 {[%emt 0:00:01]} Re7 {[%emt 0:00:02]} 35. Kf5 {[%emt 0:00:01]} Ng6 {[%emt 0:00:03]} 36. Rd7 {[%emt 0:00:01]} Rxd7 {[%emt 0:00:02]} 37. Rxd7+ {[%emt 0:00:01]} Kh6 {[%emt 0:00:01]} 38. Rb7 {[%emt 0:00:01]} Nh4+ {[%emt 0:00:02]} 39. Kg4 {[%emt 0:00:01]} Nxg2 {[%emt 0:00:01]} 40. Rxb6 {[%emt 0:00:01]} Ne3+ {[%emt 0:00:01]} 41. Kf3 {[%emt 0:00:01]} Nd1 {[%emt 0:00:02]} 42. Rxf6+ {[%emt 0:00:01]} Kg5 {[%emt 0:00:00]} 43. Ra6 {[%emt 0:00:02]} Nb2 {[%emt 0:00:06]} 44. Rxa3 {[%emt 0:00:01]} h5 {[%emt 0:00:01]} 45. Ra5+ {[%emt 0:00:01]} Kh4 {[%emt 0:00:02]} 46. c5 {[%emt 0:00:01]} Kh3 {[%emt 0:00:03]} 47. c6 {[%emt 0:00:01]} h4 {[%emt 0:00:02]} 48. c7 {[%emt 0:00:01]} 1-0

[Event "11th LCC Super Blitz 2019"]
[Site "London"]
[Date "2019.12.08"]
[Round "4.11"]
[White "Saidmurodov, Shahjahon"]
[Black "Thatte, Nandinee"]
[Result "1-0"]
[ECO "B11"]
[WhiteElo "1812"]
[BlackElo "1270"]
[Annotator "NA"]
[PlyCount "55"]
[EventDate "2019.12.08"]
[EventType "swiss"]
[EventCountry "ENG"]
[SourceTitle "playchess.com"]
[Source "ChessBase"]
[SourceQuality "1"]
[TimeControl "180+2"]

1. e4 {[%emt 0:00:00]} c6 {[%emt 0:00:00]} 2. Nc3 {[%emt 0:00:01]} d5 {[%emt 0:00:01]} 3. Nf3 {[%emt 0:00:01]} dxe4 {[%emt 0:00:02]} 4. Nxe4 {[%emt 0:00:01]} Bf5 {[%emt 0:00:01]} 5. Ng3 {[%emt 0:00:02]} Bg6 {[%emt 0:00:01]} 6. h4 {[%emt 0:00:01]} h6 {[%emt 0:00:02]} 7. Ne5 {[%emt 0:00:04]} Bh7 {[%emt 0:00:03]} 8. Bc4 {[%emt 0:00:03]} e6 {[%emt 0:00:04]} 9. d4 {[%emt 0:00:19]} Nf6 {[%emt 0:00:04]} 10. Be3 {[%emt 0:00:25]} Bd6 {[%emt 0:00:02]} 11. f4 {[%emt 0:00:07]} O-O {[%emt 0:00:07]} 12. Nh5 {[%emt 0:00:08]} Nbd7 {[%emt 0:00:12]} 13. Nxd7 {[%emt 0:00:24]} Nxd7 {[%emt 0:00:05]} 14. Qg4 {[%emt 0:00:19]} Bg6 {[%emt 0:00:18]} 15. Ng3 {[%emt 0:00:17]} Nf6 {[%emt 0:00:05]} 16. Qf3 {[%emt 0:00:04]} Qa5+ {[%emt 0:00:08]} 17. c3 {[%emt 0:00:03]} Rfe8 {[%emt 0:00:19]} 18. h5 {[%emt 0:00:05]} Bh7 {[%emt 0:00:07]} 19. O-O-O {[%emt 0:00:03]} Rac8 {[%emt 0:00:25]} 20. Bb3 {[%emt 0:00:21]} Rb8 {[%emt 0:00:29]} 21. c4 {[%emt 0:00:06]} c5 {[%emt 0:00:08]} 22. Bd2 {[%emt 0:00:25]} Qc7 {[%emt 0:00:06]} 23. dxc5 {[%emt 0:00:11]} Bxc5 {[%emt 0:00:05]} 24. Bc3 {[%emt 0:00:01]} Qe7 {[%emt 0:00:15]} 25. Rhe1 {[%emt 0:00:06]} Bb4 {[%emt 0:00:18]} 26. Bc2 {[%emt 0:00:05]} Bxc2 {[%emt 0:00:06]} 27. Kxc2 Bc5 {[%emt 0:00:04]} 28. Nf5 {[%emt 0:00:06]} 1-0

[Event "11th LCC Super Blitz 2019"]
[Site "London"]
[Date "2019.12.08"]
[Round "4.11"]
[White "Manmay Chopra"]
[Black "Ismail, Mohammed Aayan"]
[Result "0-1"]
[ECO "C00"]
[WhiteElo "1354"]
[BlackElo "1641"]
[Annotator "NA"]
[PlyCount "66"]
[EventDate "2019.12.08"]
[EventType "swiss"]
[EventCountry "ENG"]
[SourceTitle "playchess.com"]
[Source "ChessBase"]
[SourceQuality "1"]
[TimeControl "180+2"]

1. e4 {[%emt 0:00:00]} e6 {[%emt 0:00:00]} 2. d3 {[%emt 0:00:00]} c5 {[%emt 0:00:01]} 3. Nf3 {[%emt 0:00:05]} d5 {[%emt 0:00:01]} 4. Nbd2 {[%emt 0:00:01]} Nc6 {[%emt 0:00:01]} 5. g3 {[%emt 0:00:01]} Nf6 {[%emt 0:00:13]} 6. Bg2 {[%emt 0:00:01]} Be7 {[%emt 0:00:01]} 7. O-O {[%emt 0:00:02]} O-O {[%emt 0:00:02]} 8. Re1 {[%emt 0:00:05]} Qc7 {[%emt 0:00:13]} 9. c3 {[%emt 0:00:17]} dxe4 {[%emt 0:00:20]} 10. dxe4 {[%emt 0:00:04]} e5 {[%emt 0:00:11]} 11. Qc2 {[%emt 0:00:04]} Be6 {[%emt 0:00:11]} 12. Nf1 {[%emt 0:00:16]} h6 {[%emt 0:00:05]} 13. Ne3 {[%emt 0:00:02]} Rad8 {[%emt 0:00:06]} 14. Bd2 {[%emt 0:00:11]} c4 {[%emt 0:00:21]} 15. Nf5 {[%emt 0:00:06]} Bxf5 {[%emt 0:00:04]} 16. exf5 {[%emt 0:00:02]} Bc5 {[%emt 0:00:14]} 17. Be3 {[%emt 0:00:13]} Qb6 {[%emt 0:00:15]} 18. h3 {[%emt 0:00:21]} Rd3 {[%emt 0:00:08]} 19. Bxc5 {[%emt 0:00:02]} Qxc5 {[%emt 0:00:01]} 20. g4 {[%emt 0:00:01]} e4 {[%emt 0:00:08]} 21. Nd2 {[%emt 0:00:11]} Rfd8 {[%emt 0:00:14]} 22. Rad1 {[%emt 0:00:12]} e3 {[%emt 0:00:04]} 23. fxe3 {[%emt 0:00:26]} Rxe3 {[%emt 0:00:02]} 24. Rxe3 {[%emt 0:00:07]} Qxe3+ {[%emt 0:00:02]} 25. Kh1 {[%emt 0:00:05]} Qe2 {[%emt 0:00:02]} 26. Bf3 {[%emt 0:00:02]} Qf2 {[%emt 0:00:13]} 27. Bxc6 {[%emt 0:00:20]} bxc6 {[%emt 0:00:04]} 28. Qa4 {[%emt 0:00:17]} Rxd2 {[%emt 0:00:05]} 29. Rxd2 {[%emt 0:00:01]} Qxd2 {[%emt 0:00:01]} 30. Qxc6 {[%emt 0:00:03]} Qc1+ {[%emt 0:00:14]} 31. Kh2 {[%emt 0:00:03]} Qxb2+ {[%emt 0:00:02]} 32. Kg3 {[%emt 0:00:00]} Qxc3+ {[%emt 0:00:02]} 33. Kh4 {[%emt 0:00:01]} Qe1# {[%emt 0:00:03]} 0-1

[Event "11th LCC Super Blitz 2019"]
[Site "London"]
[Date "2019.12.08"]
[Round "4.12"]
[White "Srivastava, Arnav"]
[Black "Vikas Narayan S P"]
[Result "1-0"]
[ECO "D38"]
[WhiteElo "1728"]
[BlackElo "1026"]
[Annotator "NA"]
[PlyCount "55"]
[EventDate "2019.12.08"]
[EventType "swiss"]
[EventCountry "ENG"]
[SourceTitle "playchess.com"]
[Source "ChessBase"]
[SourceQuality "1"]
[TimeControl "180+2"]

1. d4 {[%emt 0:00:01]} d5 {[%emt 0:00:00]} 2. c4 {[%emt 0:00:00]} e6 {[%emt 0:00:00]} 3. Nc3 {[%emt 0:00:00]} Nf6 {[%emt 0:00:01]} 4. Bg5 {[%emt 0:00:00]} Bb4 {[%emt 0:00:01]} 5. Nf3 {[%emt 0:00:00]} O-O {[%emt 0:00:02]} 6. e3 {[%emt 0:00:01]} b6 {[%emt 0:00:04]} 7. Be2 {[%emt 0:00:01]} Nbd7 {[%emt 0:00:02]} 8. cxd5 {[%emt 0:00:01]} exd5 {[%emt 0:00:05]} 9. O-O {[%emt 0:00:01]} Bb7 {[%emt 0:00:05]} 10. Ne5 {[%emt 0:00:01]} h6 {[%emt 0:00:09]} 11. Bh4 {[%emt 0:00:01]} g5 {[%emt 0:00:02]} 12. Bg3 {[%emt 0:00:00]} Bxc3 {[%emt 0:00:07]} 13. bxc3 {[%emt 0:00:00]} Ne4 {[%emt 0:00:04]} 14. Bd3 {[%emt 0:00:07]} Nxe5 {[%emt 0:00:11]} 15. Bxe5 {[%emt 0:00:01]} f6 {[%emt 0:00:02]} 16. Bg3 {[%emt 0:00:04]} c5 {[%emt 0:00:08]} 17. Qh5 {[%emt 0:00:06]} Kg7 {[%emt 0:00:10]} 18. f3 {[%emt 0:00:13]} f5 {[%emt 0:00:15]} 19. fxe4 {[%emt 0:00:02]} dxe4 {[%emt 0:00:03]} 20. Be5+ {[%emt 0:00:07]} Kh7 {[%emt 0:00:06]} 21. Bc2 {[%emt 0:00:16]} Qe7 {[%emt 0:00:05]} 22. h4 {[%emt 0:00:17]} cxd4 {[%emt 0:00:24]} 23. cxd4 {[%emt 0:00:02]} Qa3 {[%emt 0:00:09]} 24. Rae1 {[%emt 0:00:11]} Rg8 {[%emt 0:00:27]} 25. Rxf5 {[%emt 0:00:03]} Qc3 {[%emt 0:00:09]} 26. Rf7+ {[%emt 0:00:04]} Rg7 {[%emt 0:00:08]} 27. Rxg7+ {[%emt 0:00:01]} Kh8 {[%emt 0:00:08]} 28. Qxh6# {[%emt 0:00:05]} 1-0

[Event "11th LCC Super Blitz 2019"]
[Site "London"]
[Date "2019.12.08"]
[Round "4.12"]
[White "Patel, Zain"]
[Black "Brass, Ezra"]
[Result "1/2-1/2"]
[ECO "B76"]
[WhiteElo "1253"]
[BlackElo "1628"]
[Annotator "NA"]
[PlyCount "122"]
[EventDate "2019.12.08"]
[EventType "swiss"]
[EventCountry "ENG"]
[SourceTitle "playchess.com"]
[Source "ChessBase"]
[SourceQuality "1"]
[TimeControl "180+2"]

1. e4 {[%emt 0:00:01]} c5 {[%emt 0:00:00]} 2. Nf3 {[%emt 0:00:01]} d6 {[%emt 0:00:01]} 3. d4 {[%emt 0:00:02]} cxd4 {[%emt 0:00:02]} 4. Nxd4 {[%emt 0:00:01]} Nf6 {[%emt 0:00:02]} 5. Nc3 {[%emt 0:00:01]} g6 {[%emt 0:00:02]} 6. Be3 {[%emt 0:00:01]} Bg7 {[%emt 0:00:01]} 7. f3 {[%emt 0:00:01]} Nc6 {[%emt 0:00:03]} 8. Qd2 {[%emt 0:00:03]} O-O {[%emt 0:00:04]} 9. O-O-O {[%emt 0:00:02]} d5 {[%emt 0:00:02]} 10. Nxc6 {[%emt 0:00:11]} bxc6 {[%emt 0:00:04]} 11. exd5 {[%emt 0:00:01]} cxd5 {[%emt 0:00:02]} 12. Nxd5 {[%emt 0:00:03]} Nxd5 {[%emt 0:00:03]} 13. Qxd5 {[%emt 0:00:03]} Qc7 {[%emt 0:00:02]} 14. Qxa8 {[%emt 0:00:13]} Bf5 {[%emt 0:00:01]} 15. Qxf8+ {[%emt 0:00:10]} Kxf8 {[%emt 0:00:06]} 16. Bd3 {[%emt 0:00:08]} Be6 {[%emt 0:00:12]} 17. Kb1 {[%emt 0:00:16]} Qe5 {[%emt 0:00:26]} 18. Bc1 {[%emt 0:00:35]} Qa5 {[%emt 0:00:24]} 19. a3 {[%emt 0:00:09]} f5 {[%emt 0:00:23]} 20. Rhe1 {[%emt 0:00:10]} Qd5 {[%emt 0:00:05]} 21. c4 {[%emt 0:00:08]} Qc6 {[%emt 0:00:12]} 22. Bg5 {[%emt 0:00:27]} Qb6 {[%emt 0:00:20]} 23. Bc1 {[%emt 0:00:15]} Qc6 {[%emt 0:00:17]} 24. b4 {[%emt 0:00:06]} Bxc4 {[%emt 0:00:06]} 25. Bxc4 {[%emt 0:00:06]} Qxc4 {[%emt 0:00:02]} 26. Bb2 {[%emt 0:00:09]} Qb3 {[%emt 0:00:05]} 27. Rd2 {[%emt 0:00:11]} Bc3 {[%emt 0:00:08]} 28. Re3 {[%emt 0:00:08]} Qc4 {[%emt 0:00:23]} 29. Rxc3 {[%emt 0:00:03]} Qf1+ {[%emt 0:00:02]} 30. Rc1 {[%emt 0:00:02]} Qb5 {[%emt 0:00:03]} 31. Rd8+ {[%emt 0:00:01]} Kf7 {[%emt 0:00:02]} 32. Rc5 {[%emt 0:00:05]} Qf1+ {[%emt 0:00:01]} 33. Ka2 {[%emt 0:00:01]} Qxg2 {[%emt 0:00:03]} 34. Rc7 {[%emt 0:00:04]} Qxf3 {[%emt 0:00:03]} 35. Rdd7 {[%emt 0:00:02]} Qe4 {[%emt 0:00:09]} 36. Rxa7 {[%emt 0:00:02]} Qc4+ {[%emt 0:00:02]} 37. Ka1 {[%emt 0:00:05]} Qf1+ {[%emt 0:00:01]} 38. Ka2 {[%emt 0:00:02]} Qc4+ {[%emt 0:00:01]} 39. Kb1 {[%emt 0:00:02]} Qe4+ {[%emt 0:00:02]} 40. Ka1 {[%emt 0:00:04]} Qe1+ {[%emt 0:00:02]} 41. Ka2 {[%emt 0:00:01]} Qe6+ {[%emt 0:00:02]} 42. Ka1 {[%emt 0:00:03]} Qe1+ {[%emt 0:00:02]} 43. Ka2 {[%emt 0:00:01]} Qe6+ {[%emt 0:00:04]} 44. Kb1 {[%emt 0:00:04]} Qe4+ {[%emt 0:00:02]} 45. Ka2 {[%emt 0:00:02]} Qc4+ {[%emt 0:00:01]} 46. Kb1 {[%emt 0:00:02]} Qf1+ {[%emt 0:00:02]} 47. Ka2 {[%emt 0:00:01]} Qc4+ {[%emt 0:00:02]} 48. Kb1 {[%emt 0:00:01]} Qe4+ {[%emt 0:00:01]} 49. Ka2 {[%emt 0:00:01]} Qe6+ {[%emt 0:00:02]} 50. Kb1 {[%emt 0:00:01]} Qe4+ {[%emt 0:00:02]} 51. Ka2 {[%emt 0:00:01]} Qc4+ {[%emt 0:00:01]} 52. Kb1 {[%emt 0:00:01]} Qf1+ {[%emt 0:00:01]} 53. Ka2 {[%emt 0:00:01]} Qc4+ {[%emt 0:00:01]} 54. Kb1 {[%emt 0:00:01]} Qe4+ {[%emt 0:00:02]} 55. Ka2 {[%emt 0:00:01]} Qc4+ {[%emt 0:00:04]} 56. Kb1 {[%emt 0:00:02]} Qe4+ {[%emt 0:00:03]} 57. Ka2 {[%emt 0:00:00]} Qc4+ {[%emt 0:00:02]} 58. Kb1 {[%emt 0:00:01]} Qe4+ {[%emt 0:00:01]} 59. Ka2 {[%emt 0:00:01]} Qc4+ {[%emt 0:00:02]} 60. Kb1 {[%emt 0:00:01]} Qe4+ {[%emt 0:00:02]} 61. Ka2 {[%emt 0:00:01]} Qc4+ {[%emt 0:00:02]} 1/2-1/2

[Event "11th LCC Super Blitz 2019"]
[Site "London"]
[Date "2019.12.08"]
[Round "4.15"]
[White "Watson, Steven L"]
[Black "Essis, Essoh Jean Mathieu C"]
[Result "1-0"]
[ECO "C50"]
[WhiteElo "1634"]
[BlackElo "1438"]
[Annotator "NA"]
[PlyCount "33"]
[EventDate "2019.12.08"]
[EventType "swiss"]
[EventCountry "ENG"]
[SourceTitle "playchess.com"]
[Source "ChessBase"]
[SourceQuality "1"]
[TimeControl "180+2"]

1. e4 {[%emt 0:00:03]} e5 {[%emt 0:00:01]} 2. Nf3 {[%emt 0:00:05]} Nc6 {[%emt 0:00:02]} 3. Bc4 {[%emt 0:00:04]} h6 {[%emt 0:00:03]} 4. c3 {[%emt 0:00:07]} d6 {[%emt 0:00:02]} 5. d4 {[%emt 0:00:07]} Bg4 {[%emt 0:00:05]} 6. Be3 {[%emt 0:00:16]} Qf6 {[%emt 0:00:11]} 7. d5 {[%emt 0:00:15]} Na5 {[%emt 0:00:07]} 8. Bd3 {[%emt 0:00:13]} Bxf3 {[%emt 0:00:03]} 9. gxf3 {[%emt 0:00:05]} b6 {[%emt 0:00:11]} 10. Nd2 {[%emt 0:00:05]} Nb7 {[%emt 0:00:02]} 11. Qe2 {[%emt 0:00:12]} g5 {[%emt 0:00:19]} 12. O-O-O {[%emt 0:00:11]} Ne7 {[%emt 0:00:06]} 13. Bb5+ {[%emt 0:00:02]} Kd8 {[%emt 0:00:09]} 14. Kb1 {[%emt 0:00:07]} Ng6 {[%emt 0:00:04]} 15. Bc6 {[%emt 0:00:04]} Kc8 {[%emt 0:00:07]} 16. Qa6 {[%emt 0:00:06]} Kb8 {[%emt 0:00:03]} 17. Qxb7# {[%emt 0:00:04]} 1-0

[Event "11th LCC Super Blitz 2019"]
[Site "London"]
[Date "2019.12.08"]
[Round "4.15"]
[White "Caceres De La Calle, Eduardo"]
[Black "Fisher, Neal"]
[Result "0-1"]
[ECO "A21"]
[WhiteElo "1575"]
[BlackElo "1522"]
[Annotator "NA"]
[PlyCount "82"]
[EventDate "2019.12.08"]
[EventType "swiss"]
[EventCountry "ENG"]
[SourceTitle "playchess.com"]
[Source "ChessBase"]
[SourceQuality "1"]
[TimeControl "180+2"]

1. c4 {[%emt 0:00:00]} e5 {[%emt 0:00:01]} 2. Nc3 {[%emt 0:00:02]} d6 {[%emt 0:00:00]} 3. g3 {[%emt 0:00:01]} c6 {[%emt 0:00:01]} 4. Bg2 {[%emt 0:00:01]} Be7 {[%emt 0:00:02]} 5. e3 {[%emt 0:00:01]} Nf6 {[%emt 0:00:01]} 6. Nge2 {[%emt 0:00:01]} O-O {[%emt 0:00:02]} 7. d3 {[%emt 0:00:01]} Nbd7 {[%emt 0:00:01]} 8. O-O {[%emt 0:00:02]} Re8 {[%emt 0:00:01]} 9. b3 {[%emt 0:00:02]} Nf8 {[%emt 0:00:01]} 10. Bb2 {[%emt 0:00:01]} Ng6 {[%emt 0:00:01]} 11. f4 {[%emt 0:00:03]} Bd7 {[%emt 0:00:14]} 12. f5 {[%emt 0:00:03]} Nf8 {[%emt 0:00:07]} 13. d4 {[%emt 0:00:11]} Qc8 {[%emt 0:00:01]} 14. e4 {[%emt 0:00:10]} g6 {[%emt 0:00:07]} 15. Bc1 {[%emt 0:00:19]} gxf5 {[%emt 0:00:02]} 16. exf5 {[%emt 0:00:07]} Bxf5 {[%emt 0:00:01]} 17. Bh6 {[%emt 0:00:21]} Ng6 {[%emt 0:00:02]} 18. Kh1 {[%emt 0:00:27]} Bh3 {[%emt 0:00:05]} 19. Ne4 {[%emt 0:00:03]} Nxe4 {[%emt 0:00:07]} 20. Bxe4 {[%emt 0:00:04]} Bxf1 {[%emt 0:00:01]} 21. Qxf1 {[%emt 0:00:02]} Qd8 {[%emt 0:00:24]} 22. Qc1 {[%emt 0:00:15]} Bf8 {[%emt 0:00:13]} 23. Bg5 {[%emt 0:00:02]} Be7 {[%emt 0:00:06]} 24. Bh6 {[%emt 0:00:01]} Bf6 {[%emt 0:00:18]} 25. Qe3 {[%emt 0:00:06]} Bg7 {[%emt 0:00:05]} 26. Bg5 {[%emt 0:00:04]} f6 {[%emt 0:00:01]} 27. Bh6 {[%emt 0:00:10]} Qe7 {[%emt 0:00:03]} 28. Rf1 {[%emt 0:00:09]} Bxh6 {[%emt 0:00:06]} 29. Qxh6 {[%emt 0:00:03]} Qg7 {[%emt 0:00:01]} 30. Qd2 {[%emt 0:00:09]} Rf8 {[%emt 0:00:04]} 31. h4 {[%emt 0:00:06]} Rf7 {[%emt 0:00:09]} 32. h5 {[%emt 0:00:05]} Ne7 {[%emt 0:00:10]} 33. Kh2 {[%emt 0:00:13]} Kh8 {[%emt 0:00:05]} 34. Ng1 {[%emt 0:00:12]} Rg8 {[%emt 0:00:02]} 35. Rf3 {[%emt 0:00:16]} f5 {[%emt 0:00:01]} 36. Bc2 {[%emt 0:00:06]} e4 {[%emt 0:00:02]} 37. Re3 {[%emt 0:00:04]} Qg4 {[%emt 0:00:12]} 38. Bd1 {[%emt 0:00:08]} Qg5 {[%emt 0:00:06]} 39. Kg2 {[%emt 0:00:03]} f4 {[%emt 0:00:03]} 40. Re2 {[%emt 0:00:01]} Qxg3+ {[%emt 0:00:07]} 41. Kf1 {[%emt 0:00:02]} Qxg1# {[%emt 0:00:03]} 0-1